bitfinex/quotes_ETHUSD_20220101
["timestamp","ask_amount","ask_price","bid_price","bid_amount"]
[1641015524734,0.00170527,3754.9,3754.1,0.00284212]
[1641015525137,0.00113685,3754.8,3754.1,0.00284212]
[1641015525340,0.00113685,3754.8,3754.3,1.37825274]
[1641015525537,0.00397896,3755.3,3753.4,11.51211384]
[1641015525737,0.00341054,3754.7,3753.4,9.82952869]
[1641015525937,0.00625266,3755.2,3753.5,0.00341054]
[1641015526139,0.00284212,3754.6,3753.5,0.00341054]
[1641015526337,0.00568424,3755.1,3753.5,0.00341054]
[1641015526539,3.6785,3755.4,3754.0,0.66596]
[1641015526540,1.38402806,3754.5,3754.0,0.66596]
[1641015526739,1.38175436,3754.5,3753.8,1.41265195]
[1641015526938,0.00170527,3754.4,3753.8,1.41265195]
[1641015527140,0.00170527,3754.4,3753.9,0.00113685]
[1641015527342,0.00113685,3754.3,3753.9,0.00113685]
[1641015527639,0.66597,3755.3,3753.9,0.66710685]
[1641015527640,0.00625266,3755.2,3753.9,0.66710685]
[1641015528040,1.17055227,3754.5,3753.9,0.00113685]
[1641015528500,0.00170527,3754.4,3753.9,0.00113685]
[1641015528698,0.00170527,3754.4,3753.9,0.66711685]
[1641015528900,0.00113685,3754.3,3753.9,0.66711685]
[1641015529202,0.00682108,3755.3,3753.9,0.00113685]
[1641015529599,0.00625266,3755.2,3753.9,0.00113685]
[1641015529800,0.00625266,3755.2,3753.7,0.11005283]
[1641015530000,1.28292027,3754.9,3754.1,1.21400532]
[1641015530404,0.00511582,3754.8,3754.1,1.21400532]
[1641015530601,0.00511582,3754.8,3753.9,1.57647887]
[1641015530802,0.00454739,3754.7,3753.9,1.57647887]
[1641015531203,0.00397897,3754.6,3753.9,1.57647887]
[1641015531603,0.00341055,3754.5,3753.8,1.27752619]
[1641015532036,0.00284212,3754.4,3753.7,1.18264308]
[1641015532437,0.0022737,3754.3,3753.6,1.18264308]
[1641015532842,0.00170528,3754.2,3753.7,0.00113684]
[1641015533243,0.00113685,3754.1,3753.7,0.00113684]
[1641015533644,0.00511582,3754.8,3753.7,0.00113684]
[1641015533844,0.00511582,3754.8,3753.8,1.34648138]
[1641015534045,1.28292027,3754.9,3753.8,1.34648138]
[1641015534046,0.00454739,3754.7,3753.8,1.34648138]
[1641015534542,0.00397897,3754.6,3753.8,1.34648138]
[1641015534745,0.00397897,3754.6,3753.7,1.18377992]
[1641015534943,1.58292027,3754.9,3753.7,0.00113684]
[1641015534944,0.00341055,3754.5,3753.7,0.00113684]
[1641015535347,0.00284212,3754.4,3753.8,0.00138776]
[1641015535802,1.27419597,3754.3,3753.8,0.00138776]
[1641015536201,0.00170528,3754.2,3753.3,1.30738801]
[1641015536501,0.00227369,3754.1,3753.4,0.00170527]
[1641015536705,1.37733544,3753.7,3753.4,0.00170527]
[1641015536904,0.00170527,3754.0,3753.4,0.00170527]
[1641015537104,0.00170527,3754.0,3753.3,0.0022737]
[1641015537309,6.00631406,3754.6,3753.3,0.0022737]
[1641015537310,0.00113684,3753.9,3753.3,0.0022737]
[1641015537505,0.00113684,3753.9,3753.5,0.66604]
[1641015537703,0.00454739,3754.5,3753.5,0.66604]
[1641015537903,1.31647892,3754.3,3753.5,0.66604]
[1641015538307,0.00284212,3754.2,3753.5,0.66604]
[1641015538711,0.00227369,3754.1,3753.5,0.66604]
[1641015539108,0.00170527,3754.0,3753.5,0.66604]
[1641015539542,1.31647892,3754.3,3753.5,0.66604]
[1641015539543,0.00113684,3753.9,3753.5,0.66604]
[1641015539944,0.00284212,3754.2,3753.5,0.66604]
[1641015540243,0.00227369,3754.1,3753.5,0.66604]
[1641015540644,0.00170527,3754.0,3753.5,0.66604]
[1641015541043,0.00113684,3753.9,3753.5,0.66604]
[1641015541443,0.00284212,3754.2,3753.5,0.66604]
[1641015541644,0.00284212,3754.2,3753.5,1.84868308]
[1641015541844,0.00227369,3754.1,3753.5,1.84868308]
[1641015542245,0.00170527,3754.0,3753.4,1.184203]
[1641015542444,0.00397897,3754.0,3753.4,1.184203]
[1641015542643,3.0366,3754.6,3753.4,1.184203]
[1641015542644,0.00341054,3753.9,3753.4,1.184203]
[1641015543044,0.00284212,3753.8,3753.4,1.184203]
[1641015543294,0.00284212,3753.8,3753.5,1.850253]
[1641015543491,3.0366,3754.6,3753.5,1.850253]
[1641015543492,0.0022737,3753.7,3753.5,1.850253]
[1641015543895,0.00170527,3753.6,3753.5,1.850253]
[1641015544291,0.00170527,3753.6,3753.5,0.66605]
[1641015546194,0.00170527,3753.6,3753.4,1.184203]
[1641015546597,0.00113685,3753.5,3753.4,1.184203]
[1641015546797,0.00113685,3753.5,3753.2,102.64952869]
[1641015547043,0.00113685,3753.5,3753.2,99.0]
[1641015547244,4.1525799,3754.6,3753.5,0.00072656]
[1641015547445,1.22341785,3753.9,3753.5,0.00072656]
[1641015549050,1.22341785,3753.9,3753.6,0.66604]
[1641015550690,0.00568424,3754.5,3753.6,0.66604]
[1641015551099,0.69535943,3755.5,3753.7,2.7]
[1641015551293,3.9141,3755.2,3753.7,2.77046482]
[1641015551493,0.00170527,3754.8,3754.5,27.44019255]
[1641015551697,0.00170527,3754.8,3754.6,1.00516771]
[1641015551893,0.00113684,3754.7,3754.6,1.07108514]
[1641015552093,0.00113684,3754.7,3754.6,5.95684513]
[1641015552295,1.64124027,3755.7,3754.7,5.0]
[1641015552497,1.19149459,3756.3,3754.8,0.66564]
[1641015552699,1.19149459,3756.3,3755.1,1.3312]
[1641015552896,1.19149459,3756.3,3754.8,0.73610481]
[1641015552897,0.00113685,3755.8,3754.9,0.00397896]
[1641015553097,0.00113685,3755.8,3755.2,0.00227369]
[1641015553298,0.00113685,3755.8,3755.2,0.06591743]
[1641015553498,1.19149459,3756.3,3755.0,1.00124248]
[1641015553499,0.00284212,3755.7,3755.0,1.00124248]
[1641015553703,0.00284212,3755.7,3755.3,1.33127]
[1641015553902,0.00227369,3755.6,3755.3,1.33127]
[1641015554302,1.19149459,3756.3,3755.3,1.33127]
[1641015554303,0.00170527,3755.5,3755.3,1.33127]
[1641015554844,0.00170527,3755.5,3755.0,0.00113685]
[1641015554845,0.00113685,3755.4,3755.1,0.66577]
[1641015555044,1.00200672,3755.3,3755.1,0.66577]
[1641015555244,1.00200672,3755.3,3755.0,0.00113685]
[1641015555647,1.00200672,3755.3,3754.9,0.00170527]
[1641015557845,1.00200672,3755.3,3753.9,7.152]
[1641015557846,1.00200672,3755.3,3753.9,6.44755542]
[1641015558047,0.00170527,3755.2,3753.8,3.77085935]
[1641015558302,0.00170527,3755.2,3754.0,0.00511581]
[1641015558500,0.00113685,3755.1,3754.0,0.00511581]
[1641015558700,0.00113685,3755.1,3754.5,1.3316]
[1641015558905,0.00170527,3755.2,3754.5,1.3316]
[1641015559106,0.00170527,3755.2,3754.6,0.00170527]
[1641015559300,1.00200672,3755.3,3754.6,0.00170527]
[1641015559301,0.00113685,3755.1,3754.6,0.00170527]
[1641015559501,0.00113685,3755.1,3753.9,43.00568424]
[1641015559701,2.78200026,3755.2,3753.9,0.00568424]
[1641015559902,2.78200026,3755.2,3753.7,0.00682108]
[1641015560103,2.78200026,3755.2,3753.5,0.05782656]
[1641015560104,1.25244549,3754.5,3753.8,0.00625266]
[1641015560304,0.00113685,3755.1,3754.2,1.3317]
[1641015560704,0.00113685,3755.1,3754.3,0.00341054]
[1641015561605,1.28075574,3754.9,3754.3,0.00341054]
[1641015562868,3.68075574,3754.9,3754.3,0.00341054]
[1641015563268,2.35,3754.8,3753.7,141.0]
[1641015563468,2.35,3754.8,3753.6,1.33194]
[1641015563469,0.00284212,3754.8,3754.0,0.00170527]
[1641015563669,0.00227369,3754.7,3754.0,0.00170527]
[1641015563872,0.00227369,3754.7,3753.6,1.33194]
[1641015563873,0.00227369,3754.7,3753.9,0.0022737]
[1641015564174,0.00170527,3754.6,3753.8,58.0]
[1641015564370,0.00170527,3754.6,3754.1,0.66595]
[1641015564571,0.00113685,3754.5,3753.9,1.3341037]
[1641015564771,1.31814032,3754.3,3753.9,1.3341037]
[1641015565570,1.31814032,3754.3,3753.9,0.0022737]
[1641015565993,1.31814032,3754.3,3753.6,0.00397897]
[1641015567391,1.31814032,3754.3,3753.7,0.66601]
[1641015567595,0.00227369,3754.7,3753.6,0.00397897]
[1641015567795,0.00227369,3754.7,3753.8,0.00284212]
[1641015567998,0.00170527,3754.6,3753.6,0.0698964]
[1641015568196,0.00170527,3754.6,3753.8,1.33187]
[1641015568398,0.00170527,3754.6,3753.5,132.00072656]
[1641015568399,0.00113685,3754.5,3754.2,0.66592]
[1641015568596,0.00113685,3754.5,3753.9,0.06819113]
[1641015568799,1.38917303,3754.7,3754.2,0.06591743]
[1641015569195,0.00170527,3754.6,3754.2,0.06591743]
[1641015569638,0.00113685,3754.5,3754.3,0.66592]
[1641015570043,0.00170527,3754.6,3753.1,1.99774]
[1641015570240,0.00284212,3754.4,3753.1,2.06365743]
[1641015570441,1.38917303,3754.7,3753.2,0.66989896]
[1641015570442,0.00341055,3754.5,3753.2,0.66989896]
[1641015570640,0.0022737,3754.3,3753.4,0.6659122]
[1641015570841,0.00284212,3754.4,3753.8,1.33185]
[1641015571042,0.00170528,3754.2,3753.8,1.33185]
[1641015571240,0.0022737,3754.3,3753.8,1.33185]
[1641015571443,0.00113685,3754.1,3753.9,0.06591743]
[1641015571640,1.38917303,3754.7,3753.9,0.06591743]
[1641015571641,0.00170528,3754.2,3753.9,0.06591743]
[1641015571843,0.00397897,3754.6,3753.9,0.06591743]
[1641015572043,0.00113685,3754.1,3753.9,0.06591743]
[1641015572242,0.00341055,3754.5,3753.9,0.06591743]
[1641015572446,0.00397897,3754.6,3754.1,0.00188712]
[1641015572643,0.00284212,3754.4,3753.6,140.0]
[1641015572843,0.00341055,3754.5,3753.6,140.0]
[1641015573206,3.2361204,3755.5,3754.7,25.67595734]
[1641015573409,0.27639994,3756.6,3754.7,26.66345734]
[1641015573611,0.27639994,3756.6,3754.8,0.66563]
[1641015573612,3.51252034,3756.6,3754.8,0.66563]
[1641015573806,3.51252034,3756.6,3755.0,0.2917]
[1641015573807,3.2361204,3756.6,3755.0,0.2917]
[1641015574005,10.8708,3757.1,3755.0,0.2917]
[1641015574006,3.2361204,3757.0,3755.0,0.2917]
[1641015574206,1.28902166,3756.8,3756.0,0.66551]
[1641015574407,3.2361204,3756.7,3756.0,1.64561]
[1641015574810,0.01307374,3756.6,3756.0,1.64561]
[1641015575209,0.01250531,3756.5,3755.1,1.11657]
[1641015575410,0.01250531,3756.5,3754.9,0.0992]
[1641015575609,0.01193689,3756.4,3755.3,1.3311124]
[1641015575807,0.01193689,3756.4,3755.8,0.66561]
[1641015576011,0.01136847,3756.3,3755.8,0.66561]
[1641015576407,0.01080004,3756.2,3755.8,0.66561]
[1641015576809,0.01023162,3756.1,3755.8,0.66561]
[1641015577266,0.0096632,3756.0,3755.8,0.66561]
[1641015577664,0.00909477,3755.9,3755.8,0.66561]
[1641015588508,1.03721786,3755.9,3755.8,0.66561]
[1641015591949,1.03721786,3755.9,3754.8,5.48618137]
[1641015592148,1.03721786,3755.9,3755.1,0.1008]
[1641015592350,0.00852635,3755.8,3754.9,0.108]
[1641015592549,0.00852635,3755.8,3755.3,1.33135]
[1641015592852,1.02812309,3755.9,3755.3,1.33135]
[1641015592853,0.00795793,3755.7,3755.3,1.33135]
[1641015593252,0.0073895,3755.6,3755.3,1.33135]
[1641015593655,0.00682108,3755.5,3755.3,1.33135]
[1641015594055,0.00625266,3755.4,3755.3,1.33135]
[1641015594855,1.0874053,3756.1,3755.3,1.33135]
[1641015595261,0.01290165,3756.0,3755.3,1.33135]
[1641015595461,0.01290165,3756.0,3755.2,0.66566]
[1641015595691,0.00284211,3755.9,3755.0,0.66579]
[1641015596091,0.00227369,3755.8,3755.1,0.00170527]
[1641015596491,0.00170527,3755.7,3755.1,0.00170527]
[1641015596790,0.00113684,3755.6,3755.1,0.00170527]
[1641015597192,0.00284211,3755.9,3754.9,0.00284212]
[1641015597393,0.00284211,3755.9,3754.8,0.00341054]
[1641015597592,0.00227369,3755.8,3754.8,0.00341054]
[1641015598000,0.00170527,3755.7,3754.8,0.00341054]
[1641015598399,2.25862314,3756.0,3754.8,0.00341054]
[1641015598400,0.00113684,3755.6,3754.8,0.00341054]
[1641015598800,0.6659,3755.8,3754.8,0.00341054]
[1641015599198,0.00170527,3755.7,3754.8,0.00341054]
[1641015599641,0.6659,3755.8,3754.8,0.00341054]
[1641015599642,0.00113684,3755.6,3754.8,0.00341054]
[1641015599842,1.15153044,3754.9,3754.8,0.00341054]
[1641015600745,1.15153044,3754.9,3754.7,2.31139358]
[1641015601145,1.05153044,3754.9,3754.7,2.31139358]
[1641015601945,1.05153044,3754.9,3754.1,1.33174]
[1641015602146,1.05153044,3754.9,3753.9,61.64315358]
[1641015602346,1.05153044,3754.9,3754.2,60.00341054]
[1641015602545,1.05153044,3754.9,3754.2,0.00341054]
[1641015602746,1.05153044,3754.9,3754.3,59.00284212]
[1641015602947,1.05153044,3754.9,3753.9,59.00511582]
[1641015603199,1.05153044,3754.9,3754.4,57.0022737]
[1641015603403,1.05153044,3754.9,3754.6,0.66586]
[1641015604502,1.05153044,3754.9,3754.6,58.66586]
[1641015604701,1.05153044,3754.9,3754.6,0.66586]
[1641015605101,1.05153044,3754.9,3754.8,0.66583]
[1641015605713,0.0599,3755.6,3754.8,0.66583]
[1641015605907,0.0599,3755.6,3754.5,53.0]
[1641015606107,0.00397896,3755.5,3754.5,56.5]
[1641015606307,0.00397896,3755.5,3754.6,0.00113685]
[1641015606506,0.00341054,3755.4,3754.6,0.00113685]
[1641015606707,0.00341054,3755.4,3754.6,57.00113685]
[1641015606945,1.40823398,3755.2,3754.6,0.00113685]
[1641015607145,1.40823398,3755.2,3754.7,50.0]
[1641015607446,0.00170527,3755.1,3754.8,49.0]
[1641015607854,1.40823398,3755.2,3754.7,3.5]
[1641015607855,0.00113684,3755.0,3754.7,3.5]
[1641015608253,0.00170527,3755.1,3754.6,0.00113685]
[1641015608651,1.40823398,3755.2,3754.2,0.66593]
[1641015608652,0.00113684,3755.0,3754.2,0.66593]
[1641015609053,0.00170527,3755.1,3754.3,0.00284212]
[1641015609452,0.00113684,3755.0,3754.3,0.00284212]
[1641015609655,0.00113684,3755.0,3754.3,39.16877212]
[1641015609852,0.00341054,3754.9,3754.3,39.16877212]
[1641015610054,0.00341054,3754.9,3754.4,44.0]
[1641015610251,0.00284212,3754.8,3754.4,44.0]
[1641015610703,0.00227369,3754.7,3754.5,41.0]
[1641015611106,0.00227369,3754.7,3754.3,1.33171]
[1641015611107,0.00170527,3754.6,3754.3,1.33171]
[1641015611508,0.00113685,3754.5,3754.3,1.33171]
[1641015611706,0.00113685,3754.5,3754.1,1.05750968]
[1641015611907,0.00284212,3754.8,3754.1,1.05750968]
[1641015612311,0.00227369,3754.7,3754.1,1.05750968]
[1641015612713,0.00170527,3754.6,3754.1,1.05750968]
[1641015612911,0.00170527,3754.6,3754.1,4.38738487]
[1641015613113,0.00113685,3754.5,3754.1,4.38738487]
[1641015613516,0.00284212,3754.8,3754.1,4.38738487]
[1641015613713,0.00284212,3754.8,3754.1,1.05750968]
[1641015613913,0.00227369,3754.7,3754.1,0.66595]
[1641015614314,0.00170527,3754.6,3754.1,0.66595]
[1641015614740,0.00113685,3754.5,3754.1,0.66595]
[1641015615142,0.00284212,3754.8,3754.1,0.66595]
[1641015615546,0.00227369,3754.7,3753.4,4.40139739]
[1641015615747,0.00227369,3754.7,3753.4,1.37869739]
[1641015615948,1.25108418,3754.2,3753.7,0.00341054]
[1641015616348,0.00568423,3755.3,3753.9,1.33182]
[1641015616749,0.00511581,3755.2,3754.0,0.00170527]
[1641015617150,0.00454739,3755.1,3754.0,0.00170527]
[1641015617547,1.2185714,3754.7,3754.0,0.00170527]
[1641015617748,1.2185714,3754.7,3754.2,1.33173]
[1641015617949,0.00170527,3754.6,3754.2,1.33173]
[1641015618402,0.00113685,3754.5,3754.2,1.33173]
[1641015618802,0.00625266,3755.4,3754.2,5.44571562]
[1641015618998,0.00625266,3755.4,3755.0,0.66568]
[1641015619201,10.5707,3756.4,3755.0,1.34938]
[1641015619202,0.00568423,3755.3,3755.0,1.34938]
[1641015619600,10.5707,3756.4,3755.0,1.34938]
[1641015619601,0.00511581,3755.2,3755.0,1.34938]
[1641015620006,0.00454739,3755.1,3755.0,1.34938]
[1641015620203,0.00454739,3755.1,3755.0,0.66568]
[1641015620803,0.00454739,3755.1,3754.2,2.48856359]
[1641015621002,0.00454739,3755.1,3754.2,0.06591743]
[1641015621202,0.00397896,3755.0,3754.2,0.06591743]
[1641015621406,0.00397896,3755.0,3754.8,1.3315]
[1641015621602,1.24953597,3755.1,3754.8,1.3315]
[1641015621603,0.00341054,3754.9,3754.8,1.3315]
[1641015625703,0.00341054,3754.9,3754.1,1.63355351]
[1641015625908,0.00341054,3754.9,3754.1,0.06309351]
[1641015626106,0.00284212,3754.8,3754.1,0.06309351]
[1641015626306,0.00284212,3754.8,3754.1,0.46837257]
[1641015626609,0.00227369,3754.7,3754.4,1.33166]
[1641015627008,0.00170527,3754.6,3754.4,1.33166]
[1641015627409,0.00113685,3754.5,3754.4,1.33166]
[1641015631651,0.00113685,3754.5,3753.7,3.35083899]
[1641015631854,0.00113685,3754.5,3753.8,6.0]
[1641015632053,0.00113685,3754.5,3753.8,0.00284212]
[1641015632253,0.00113685,3754.5,3753.7,3.5]
[1641015632254,0.00113685,3754.5,3754.1,0.66589]
[1641015632454,0.00113685,3754.5,3753.8,0.00284212]
[1641015634106,2.84043403,3754.5,3753.8,0.00284212]
[1641015634908,2.84043403,3754.5,3753.6,0.00397897]
[1641015636015,1.13150893,3753.7,3753.6,0.00397897]
[1641015637271,1.13150893,3753.7,3752.3,13.64723857]
[1641015637474,1.13150893,3753.7,3752.9,0.0630954]
[1641015638573,1.13150893,3753.7,3753.3,1.33204]
[1641015638977,1.13150893,3753.7,3753.5,0.66605]
[1641015643104,2.52936732,3753.6,3753.5,0.66605]
[1641015643309,1.13150893,3753.7,3753.5,0.66605]
[1641015643909,1.13150893,3753.7,3752.1,6.68]
[1641015644108,0.0630954,3754.1,3752.1,6.68]
[1641015644109,1.16282562,3753.1,3752.5,3.40743975]
[1641015644309,1.16282562,3753.1,3752.6,0.00454739]
[1641015644555,0.00341054,3754.0,3753.1,0.66607]
[1641015644760,0.00341054,3754.0,3753.0,1.33216]
[1641015644956,0.00284211,3753.9,3753.2,0.00113685]
[1641015645156,0.00284211,3753.9,3753.1,0.00170527]
[1641015645359,0.0630954,3754.1,3753.1,0.00170527]
[1641015645360,0.00227369,3753.8,3753.1,0.00170527]
[1641015645757,1.03396527,3753.5,3753.3,0.66607]
[1641015652153,1.03396527,3753.5,3752.6,1.3320968]
[1641015652352,1.03396527,3753.5,3752.6,0.17412676]
[1641015652554,0.00170527,3753.4,3752.7,0.0022737]
[1641015652854,0.00113684,3753.3,3752.7,0.0022737]
[1641015653253,0.00170527,3753.4,3752.7,3.5022737]
[1641015653553,0.00113684,3753.3,3752.8,0.00170527]
[1641015653755,0.00113684,3753.3,3753.2,1.33211]
[1641015653953,0.00170527,3753.4,3753.2,1.33211]
[1641015654155,0.00113684,3753.3,3753.2,1.33211]
[1641015656614,1.23616168,3753.3,3753.2,1.33211]
[1641015656813,0.00113684,3753.3,3753.2,1.33211]
[1641015657213,3.01626592,3754.6,3753.3,2.2]
[1641015657414,3.01626592,3754.6,3753.2,1.34490726]
[1641015657616,0.00682109,3754.5,3753.9,0.66593]
[1641015658015,1.29098089,3754.1,3753.9,0.66593]
[1641015658418,0.00397897,3754.0,3753.9,0.66593]
[1641015659850,2.55397897,3754.0,3753.9,0.66593]
[1641015660455,0.00397897,3754.0,3753.0,5.10943256]
[1641015660854,0.00341054,3753.9,3753.1,0.00113684]
[1641015661152,0.00284212,3753.8,3753.1,0.00113684]
[1641015661550,0.0022737,3753.7,3753.1,0.00113684]
[1641015661750,0.0022737,3753.7,3753.5,1.33195]
[1641015661949,1.03775356,3754.3,3753.5,1.33195]
[1641015661950,0.00170527,3753.6,3753.5,1.33195]
[1641015662352,3.15170527,3753.6,3753.5,1.33195]
[1641015662555,3.15170527,3753.6,3753.1,0.00113684]
[1641015662556,6.15668469,3753.6,3753.1,0.00113684]
[1641015662761,6.15668469,3753.6,3753.2,1.18541434]
[1641015662950,0.00113685,3753.5,3753.2,1.18541434]
[1641015663420,1.20453433,3753.4,3753.2,1.18541434]
[1641015664023,1.20453433,3753.4,3752.9,0.00227369]
[1641015664422,1.20453433,3753.4,3752.8,0.00284211]
[1641015664822,2.46954731,3753.3,3752.8,0.00284211]
[1641015666023,2.46954731,3753.3,3752.7,0.00341054]
[1641015666223,1.20453433,3753.4,3752.7,0.00341054]
[1641015666423,0.00113685,3753.5,3752.7,0.00341054]
[1641015666424,3.57107362,3752.8,3752.7,0.00341054]
[1641015666626,1.17107362,3752.8,3752.3,4.45117488]
[1641015667070,1.17107362,3752.8,3752.4,0.00170527]
[1641015667260,0.00397897,3753.4,3752.4,1.33405527]
[1641015667261,0.0592,3753.3,3752.4,1.33405527]
[1641015667465,0.00397897,3753.4,3752.4,1.33235]
[1641015667660,0.00284212,3753.2,3752.5,0.00113684]
[1641015667861,3.12111409,3754.1,3752.5,0.00113684]
[1641015667862,0.00341054,3753.3,3752.5,0.00113684]
[1641015668062,0.0022737,3753.1,3752.5,0.00113684]
[1641015668267,0.00284212,3753.2,3752.5,0.00113684]
[1641015668470,1.00086609,3753.0,3752.5,0.00113684]
[1641015668668,0.99916082,3753.0,3752.8,0.66616]
[1641015668868,0.00113685,3752.9,3752.8,0.66616]
[1641015669269,0.00113685,3752.9,3752.5,0.00113684]
[1641015670706,0.00113685,3752.9,3752.6,0.66621]
[1641015671809,0.00113685,3752.9,3751.9,0.94704489]
[1641015672010,0.00170527,3752.8,3751.9,0.94704489]
[1641015672207,0.00170527,3752.8,3752.0,0.00284212]
[1641015672412,0.00113684,3752.7,3752.0,0.00284212]
[1641015672812,0.99916082,3753.0,3752.0,0.00284212]
[1641015672813,0.00227369,3752.9,3752.4,1.33235]
[1641015673112,0.00170527,3752.8,3752.4,1.28235]
[1641015673513,0.00113684,3752.7,3752.4,1.28235]
[1641015673913,0.00227369,3752.9,3752.4,1.28235]
[1641015674314,0.00170527,3752.8,3752.4,1.28235]
[1641015674759,0.00113684,3752.7,3752.4,1.28235]
[1641015675160,0.00227369,3752.9,3752.4,1.28235]
[1641015675557,0.00170527,3752.8,3752.4,1.28235]
[1641015675956,0.00113684,3752.7,3752.4,1.28235]
[1641015676159,0.00113684,3752.7,3751.7,1.03692905]
[1641015676357,0.00341054,3752.6,3751.7,1.03692905]
[1641015676564,1.19981734,3752.3,3751.8,0.00113685]
[1641015676763,1.19981734,3752.3,3752.0,1.3325]
[1641015676964,0.00113685,3752.2,3752.0,1.3325]
[1641015677565,1.20037782,3752.6,3752.0,1.3325]
[1641015678617,1.20037782,3752.6,3751.8,0.00113685]
[1641015678921,1.20037782,3752.6,3751.8,0.0022737]
[1641015679319,0.15143731,3752.5,3751.8,0.0022737]
[1641015679719,0.15143731,3752.5,3751.1,0.00625266]
[1641015679720,0.00113684,3752.4,3751.1,0.00625266]
[1641015679920,0.00113684,3752.4,3751.0,0.00682109]
[1641015680119,0.00113684,3752.4,3751.1,0.66644]
[1641015680120,0.06173684,3752.4,3751.1,0.66644]
[1641015680322,4.85,3752.3,3750.7,3.28823899]
[1641015680525,4.85,3752.3,3750.5,34.28823899]
[1641015680526,0.01256809,3752.1,3750.5,34.28823899]
[1641015680823,4.95,3751.5,3750.5,3.01427583]
[1641015681124,4.95,3751.5,3750.3,0.06359495]
[1641015681125,0.0128038,3751.2,3750.6,0.00113685]
[1641015681526,0.0128038,3751.2,3750.4,1.5966379]
[1641015681527,0.00170527,3751.1,3750.4,1.5966379]
[1641015681722,0.00170527,3751.1,3750.4,1.5943642]
[1641015681963,0.00113684,3751.0,3750.6,0.0012352]
[1641015682367,0.15314258,3751.1,3750.6,0.0012352]
[1641015682565,0.66676,3751.0,3750.0,1.5943642]
[1641015682766,0.66960211,3751.0,3750.0,1.5943642]
[1641015682971,0.00227369,3750.9,3750.1,1.5966379]
[1641015683372,1.12676651,3750.7,3750.2,0.00170527]
[1641015684572,1.12676651,3750.7,3749.7,1.5943642]
[1641015684573,1.12676651,3750.7,3749.8,0.00397897]
[1641015684770,0.153711,3750.9,3749.8,0.00397897]
[1641015684972,0.15143731,3750.6,3749.8,0.00397897]
[1641015685171,0.15143731,3750.6,3750.0,6.18]
[1641015685807,1.05451915,3750.2,3750.0,1.18]
[1641015686007,1.05451915,3750.2,3749.6,1.5943642]
[1641015686209,0.00113684,3750.7,3749.6,1.5943642]
[1641015686408,0.00113684,3750.7,3749.7,0.00454739]
[1641015686605,0.0572,3751.0,3749.7,0.00454739]
[1641015686606,0.00227369,3750.9,3749.7,0.00454739]
[1641015687007,0.0572,3751.0,3749.7,0.00454739]
[1641015687008,0.00170527,3750.8,3749.7,6.18]
[1641015687407,1.33104898,3750.3,3749.8,0.00397897]
[1641015688210,0.49416882,3750.2,3749.8,0.00397897]
[1641015689667,1.33104898,3750.3,3749.8,0.00397897]
[1641015690768,1.33104898,3750.3,3748.8,0.0096632]
[1641015690970,1.33104898,3750.3,3749.2,1.5943642]
[1641015690971,0.49437261,3750.2,3749.2,1.5943642]
[1641015691368,0.49437261,3750.2,3749.3,0.00682108]
[1641015691569,4.6,3750.1,3748.7,0.34953307]
[1641015691868,0.00397896,3750.0,3748.8,0.00284212]
[1641015692370,0.00341054,3749.9,3748.8,0.00284212]
[1641015692567,0.49778315,3749.9,3749.2,1.20901647]
[1641015692769,0.00284211,3749.8,3749.2,1.20901647]
[1641015693201,0.00227369,3749.7,3749.3,1.20901647]
[1641015693608,0.00170527,3749.6,3749.2,1.2749339]
[1641015693908,0.00113684,3749.5,3749.2,1.2749339]
[1641015694308,1.21564302,3749.7,3749.2,1.2749339]
[1641015694711,0.00170527,3749.6,3749.2,1.2749339]
[1641015695109,0.00113684,3749.5,3749.2,1.2749339]
[1641015695307,0.00113684,3749.5,3749.2,1.1749339]
[1641015695508,0.00170527,3749.6,3749.2,1.1749339]
[1641015695908,0.00113684,3749.5,3749.2,1.1749339]
[1641015696310,0.72287024,3750.3,3749.3,0.66672]
[1641015696510,1.20651453,3750.0,3749.3,0.66672]
[1641015696709,2.15,3749.9,3748.4,3.80662019]
[1641015696952,2.15625266,3749.9,3748.3,0.99968341]
[1641015697256,0.00568423,3749.8,3748.6,0.00113685]
[1641015697453,0.00568423,3749.8,3748.7,1.3335]
[1641015697655,0.00511581,3749.7,3748.7,1.3335]
[1641015698053,0.00454739,3749.6,3748.7,1.3335]
[1641015698458,2.15,3749.9,3748.7,1.3335]
[1641015698459,1.24382386,3748.9,3748.7,1.3335]
[1641015698658,1.24382386,3748.9,3748.6,0.00113685]
[1641015699760,1.24382386,3748.9,3748.3,0.00284212]
[1641015700158,1.24382386,3748.9,3748.7,6.93]
[1641015700360,1.24382386,3748.9,3747.7,2.4239206]
[1641015700361,4.75,3748.8,3747.7,2.32676272]
[1641015700561,4.75284212,3748.8,3747.7,2.32676272]
[1641015700803,0.00227369,3748.7,3747.8,0.00284212]
[1641015701007,4.25,3748.6,3747.7,2.27960484]
[1641015701215,4.25454739,3748.6,3747.3,2.6666103]
[1641015701409,0.00397897,3748.5,3747.3,2.6666103]
[1641015701611,1.23204129,3747.7,3747.4,0.00227369]
[1641015701807,0.06651054,3748.4,3747.6,1.6180299]
[1641015702010,0.00341054,3748.4,3747.9,6.18]
[1641015702208,0.00284212,3748.3,3747.9,6.13]
[1641015702708,0.0022737,3748.2,3747.9,1.13]
[1641015702912,0.0022737,3748.2,3748.0,0.06591743]
[1641015703112,0.00170527,3748.1,3748.0,0.06591743]
[1641015703309,0.00170527,3748.1,3748.0,0.07799723]
[1641015703709,2.75787967,3749.5,3748.0,0.06591743]
[1641015703912,3.49791262,3749.5,3748.0,1.33373]
[1641015704111,0.00738951,3749.4,3747.9,1.6180299]
[1641015704311,0.00738951,3749.4,3748.0,1.6180299]
[1641015704312,0.77826974,3749.4,3748.0,1.6180299]
[1641015704574,5.00278128,3748.1,3748.0,1.6180299]
[1641015704778,5.00278128,3748.1,3748.0,1.5680299]
[1641015704979,1.25278128,3748.1,3747.5,7.7480299]
[1641015705376,1.25278128,3748.1,3747.6,0.00284211]
[1641015706878,1.25278128,3748.1,3747.6,0.06875954]
[1641015707279,1.25278128,3748.1,3747.7,0.00227369]
[1641015707581,0.91586343,3748.0,3747.7,0.00227369]
[1641015707782,0.91586343,3748.0,3747.8,0.06591743]
[1641015708217,0.91586343,3748.0,3747.9,0.00113684]
[1641015708407,4.61488086,3748.0,3747.9,0.00113684]
[1641015708706,5.36232582,3748.7,3747.9,0.06705427]
[1641015708707,0.91586343,3748.6,3747.9,0.06705427]
[1641015709207,0.0022737,3748.5,3747.9,0.01591743]
[1641015709409,0.0022737,3748.5,3747.9,0.06591743]
[1641015709607,0.00170527,3748.4,3747.9,0.06591743]
[1641015710008,0.00113685,3748.3,3747.9,0.06591743]
[1641015710509,0.0022737,3748.5,3747.9,0.06591743]
[1641015710911,0.00170527,3748.4,3747.9,0.06591743]